[Event "1st Bangalore GM-Open-A 2024"]
[Site "Bangalore"]
[Date "2024.01.18"]
[Round "1.26"]
[White "Nimay Agrawal"]
[Black "Ilamparthi A R"]
[Result "0-1"]
[ECO "C41"]
[WhiteElo "2067"]
[BlackElo "2426"]
[Annotator "RC"]
[PlyCount "118"]
[EventDate "2024.01.20"]
[EventType "swiss"]
[EventCountry "IND"]
[SourceTitle "playchess.com"]
[Source "ChessBase"]
[SourceQuality "1"]
[TimeControl "5400+30"]

1. e4 {[%emt 0:00:06]} d6 {[%emt 0:01:17]} 2. d4 {[%emt 0:00:25]} Nf6 {[%emt 0:00:05]} 3. Nc3 {[%emt 0:00:28]} e5 {[%emt 0:00:05]} 4. Nf3 {[%emt 0:00:45]} Nbd7 {[%emt 0:00:09]} 5. Bc4 {[%emt 0:00:51]} Be7 {[%emt 0:00:07]} 6. a4 {[%emt 0:01:52]} O-O {[%emt 0:00:07]} 7. O-O {[%emt 0:00:24]} c6 {[%emt 0:00:04]} 8. h3 {[%emt 0:00:36]} h6 {[%emt 0:03:04]} 9. Be3 {[%emt 0:01:56]} Re8 {[%emt 0:01:22]} 10. Re1 {[%emt 0:02:16]} Bf8 {[%emt 0:01:22]} 11. d5 {[%emt 0:09:13]} Qc7 {[%emt 0:06:33]} 12. Bb3 {[%emt 0:05:46]} cxd5 {[%emt 0:05:12]} 13. Nxd5 {[%emt 0:07:29]} Nxd5 {[%emt 0:00:24]} 14. Bxd5 {[%emt 0:01:06]} Nf6 {[%emt 0:01:12]} 15. c4 {[%emt 0:02:32]} Nxd5 {[%emt 0:03:22]} 16. cxd5 {[%emt 0:00:17]} f5 {[%emt 0:00:26]} 17. exf5 {[%emt 0:04:25]} Bxf5 {[%emt 0:00:43]} 18. Nh4 {[%emt 0:03:05]} Bh7 {[%emt 0:09:07]} 19. Qg4 {[%emt 0:05:05]} g5 {[%emt 0:11:54]} 20. Nf5 {[%emt 0:06:34]} Qf7 {[%emt 0:10:14]} 21. Ng3 {[%emt 0:00:42]} Qxd5 {[%emt 0:05:54]} 22. h4 {[%emt 0:00:55]} Qe6 {[%emt 0:02:00]} 23. Qxe6+ {[%emt 0:01:38]} Rxe6 {[%emt 0:00:02]} 24. hxg5 {[%emt 0:00:10]} hxg5 {[%emt 0:04:54]} 25. Bxg5 {[%emt 0:02:09]} Rc8 {[%emt 0:05:38]} 26. Rac1 {[%emt 0:04:03]} Rc6 {[%emt 0:02:32]} 27. b4 {[%emt 0:06:17]} d5 {[%emt 0:03:07]} 28. b5 {[%emt 0:01:05]} Rc5 {[%emt 0:01:33]} 29. Rcd1 {[%emt 0:12:04]} Bc2 {[%emt 0:01:44]} 30. Rd2 {[%emt 0:05:29]} Bxa4 {[%emt 0:00:17]} 31. Ra2 {[%emt 0:02:14]} Bxb5 {[%emt 0:01:47]} 32. Rxa7 {[%emt 0:00:09]} Ba6 {[%emt 0:01:46]} 33. Ra8 {[%emt 0:00:52]} Kf7 {[%emt 0:01:18]} 34. Rd8 {[%emt 0:03:25]} Bd6 {[%emt 0:05:13]} 35. Nf5 {[%emt 0:02:12]} Bc7 {[%emt 0:01:06]} 36. Rd7+ {[%emt 0:00:26]} Kg6 {[%emt 0:01:40]} 37. Rg7+ {[%emt 0:00:30]} Kxf5 {[%emt 0:00:07]} 38. g4+ {[%emt 0:00:06]} Kxg4 {[%emt 0:00:04]} 39. Be3+ {[%emt 0:00:41]} Kf5 {[%emt 0:00:09]} 40. Bxc5 {[%emt 0:00:14]} Ba5 {[%emt 0:01:09]} 41. Re3 {[%emt 0:02:25]} d4 {[%emt 0:02:19]} 42. Reg3 {[%emt 0:02:45]} Bd2 {[%emt 0:01:09]} 43. Rf7+ {[%emt 0:03:32]} Ke4 {[%emt 0:00:14]} 44. Rg4+ {[%emt 0:01:09]} Bf4 {[%emt 0:02:14]} 45. Ba3 {[%emt 0:01:19]} Be2 {[%emt 0:00:59]} 46. Rgxf4+ {[%emt 0:00:55]} exf4 {[%emt 0:00:02]} 47. Re7 {[%emt 0:00:08]} Rxe7 {[%emt 0:00:39]} 48. Bxe7 {[%emt 0:00:02]} Kd3 {[%emt 0:00:14]} 49. f3 {[%emt 0:00:44]} Kc2 {[%emt 0:00:06]} 50. Bg5 {[%emt 0:01:13]} d3 {[%emt 0:00:07]} 51. Bxf4 {[%emt 0:00:09]} d2 {[%emt 0:00:05]} 52. Bxd2 {[%emt 0:00:18]} Kxd2 {[%emt 0:00:03]} 53. f4 {[%emt 0:00:18]} b5 {[%emt 0:00:09]} 54. f5 {[%emt 0:00:09]} b4 {[%emt 0:00:02]} 55. f6 {[%emt 0:00:06]} Bc4 {[%emt 0:00:04]} 56. f7 {[%emt 0:00:05]} Bxf7 {[%emt 0:00:03]} 57. Kf2 {[%emt 0:00:06]} b3 {[%emt 0:00:03]} 58. Kf3 {[%emt 0:00:07]} b2 {[%emt 0:00:04]} 59. Kf4 {[%emt 0:00:07]} b1=Q {[%emt 0:00:06]} 0-1

[Event "1st Bangalore GM-Open-A 2024"]
[Site "Bangalore"]
[Date "2024.01.18"]
[Round "1.27"]
[White "Tahbaz, Arash"]
[Black "Gourav Nigam"]
[Result "1-0"]
[ECO "A24"]
[WhiteElo "2425"]
[BlackElo "2059"]
[Annotator "RC"]
[PlyCount "87"]
[EventDate "2024.01.20"]
[EventType "swiss"]
[EventCountry "IND"]
[SourceTitle "playchess.com"]
[Source "ChessBase"]
[SourceQuality "1"]
[TimeControl "5400+30"]

1. Nf3 {[%emt 0:00:15]} Nf6 {[%emt 0:00:16]} 2. g3 {[%emt 0:00:09]} g6 {[%emt 0:00:19]} 3. Bg2 {[%emt 0:00:04]} Bg7 {[%emt 0:00:09]} 4. O-O {[%emt 0:00:05]} O-O {[%emt 0:00:10]} 5. c4 {[%emt 0:00:17]} d6 {[%emt 0:00:12]} 6. Nc3 {[%emt 0:00:05]} e5 {[%emt 0:00:12]} 7. d3 {[%emt 0:00:04]} c6 {[%emt 0:00:55]} 8. Rb1 {[%emt 0:03:24]} Re8 {[%emt 0:02:12]} 9. Nd2 {[%emt 0:05:15]} d5 {[%emt 0:05:29]} 10. b4 {[%emt 0:02:02]} Be6 {[%emt 0:02:08]} 11. b5 {[%emt 0:00:46]} Nbd7 {[%emt 0:02:06]} 12. a4 {[%emt 0:01:36]} Rc8 {[%emt 0:12:10]} 13. bxc6 {[%emt 0:02:36]} bxc6 {[%emt 0:00:17]} 14. cxd5 {[%emt 0:00:03]} Nxd5 {[%emt 0:03:51]} 15. Bb2 {[%emt 0:01:40]} f5 {[%emt 0:16:37]} 16. Qc1 {[%emt 0:08:44]} Bh6 {[%emt 0:04:42]} 17. Ba3 {[%emt 0:06:37]} Qa5 {[%emt 0:03:36]} 18. Bb2 {[%emt 0:18:32]} Rb8 {[%emt 0:05:35]} 19. Rd1 {[%emt 0:19:07]} Kg7 {[%emt 0:10:33]} 20. Ba1 {[%emt 0:02:54]} Rxb1 {[%emt 0:02:56]} 21. Ncxb1 {[%emt 0:00:04]} Qxa4 {[%emt 0:00:22]} 22. Nc3 {[%emt 0:00:04]} Qa6 {[%emt 0:07:47]} 23. Nxd5 {[%emt 0:04:51]} cxd5 {[%emt 0:00:17]} 24. f4 {[%emt 0:00:19]} Rc8 {[%emt 0:01:33]} 25. Qb1 {[%emt 0:00:20]} Kf7 {[%emt 0:00:40]} 26. Bxe5 {[%emt 0:05:28]} Nxe5 {[%emt 0:00:18]} 27. fxe5 {[%emt 0:00:02]} Be3+ {[%emt 0:03:24]} 28. Kh1 {[%emt 0:00:34]} Qb6 {[%emt 0:01:10]} 29. Qa2 {[%emt 0:00:45]} Rc5 {[%emt 0:03:27]} 30. Nf1 {[%emt 0:11:35]} d4 {[%emt 0:00:23]} 31. Qa3 {[%emt 0:02:02]} Bh6 {[%emt 0:01:24]} 32. Rb1 {[%emt 0:00:54]} Qxb1 {[%emt 0:02:17]} 33. Qxa7+ {[%emt 0:00:14]} Ke8 {[%emt 0:03:31]} 34. Qxc5 {[%emt 0:00:07]} Be3 {[%emt 0:00:09]} 35. Qc6+ {[%emt 0:01:08]} Kf7 {[%emt 0:01:02]} 36. Qc7+ {[%emt 0:00:08]} Kf8 {[%emt 0:00:02]} 37. Qd8+ {[%emt 0:00:09]} Kg7 {[%emt 0:02:10]} 38. Qf6+ {[%emt 0:00:05]} Kh6 {[%emt 0:00:05]} 39. Qxe6 {[%emt 0:00:02]} Qe1 {[%emt 0:00:10]} 40. Qa2 {[%emt 0:04:21]} Qf2 {[%emt 0:00:32]} 41. Nxe3 {[%emt 0:00:04]} dxe3 {[%emt 0:00:09]} 42. h3 {[%emt 0:00:11]} Qxg3 {[%emt 0:00:25]} 43. Qa1 {[%emt 0:00:14]} f4 {[%emt 0:00:19]} 44. Qf1 {[%emt 0:00:45]} 1-0

[Event "1st Bangalore GM-Open-A 2024"]
[Site "Bangalore"]
[Date "2024.01.18"]
[Round "1.28"]
[White "Kiran, Manisha Mohanty"]
[Black "Hesham, Abdelrahman"]
[Result "1-0"]
[ECO "B95"]
[WhiteElo "2058"]
[BlackElo "2424"]
[Annotator "RC"]
[PlyCount "129"]
[EventDate "2024.01.20"]
[EventType "swiss"]
[EventCountry "IND"]
[SourceTitle "playchess.com"]
[Source "ChessBase"]
[SourceQuality "1"]
[TimeControl "5400+30"]

1. e4 {[%emt 0:00:06]} c5 {[%emt 0:16:45]} 2. Nf3 {[%emt 0:00:56]} d6 {[%emt 0:00:00]} 3. d4 {[%emt 0:00:23]} cxd4 {[%emt 0:00:00]} 4. Nxd4 {[%emt 0:00:03]} Nf6 {[%emt 0:00:00]} 5. Nc3 {[%emt 0:00:07]} a6 {[%emt 0:00:00]} 6. Bg5 {[%emt 0:02:38]} e6 {[%emt 0:00:00]} 7. Qe2 {[%emt 0:00:56]} Be7 {[%emt 0:00:00]} 8. h4 {[%emt 0:00:13]} h6 {[%emt 0:00:00]} 9. Be3 {[%emt 0:02:53]} b5 {[%emt 0:00:00]} 10. a3 {[%emt 0:00:06]} Bb7 {[%emt 0:00:00]} 11. f3 {[%emt 0:00:13]} Qc7 {[%emt 0:00:00]} 12. O-O-O {[%emt 0:00:13]} d5 {[%emt 0:00:00]} 13. exd5 {[%emt 0:11:03]} Nxd5 {[%emt 0:00:00]} 14. Nxd5 {[%emt 0:00:06]} Bxd5 {[%emt 0:00:00]} 15. Qf2 {[%emt 0:01:05]} Nc6 {[%emt 0:00:00]} 16. Nf5 {[%emt 0:16:11]} Bf6 {[%emt 0:00:00]} 17. Qg3 {[%emt 0:00:28]} Ne5 {[%emt 0:42:04]} 18. Nxg7+ {[%emt 0:10:56]} Ke7 {[%emt 0:00:54]} 19. Nh5 {[%emt 0:02:18]} Bb3 {[%emt 0:02:49]} 20. Rd2 {[%emt 0:14:21]} Rhd8 {[%emt 0:04:57]} 21. Qf4 {[%emt 0:07:48]} Rxd2 {[%emt 0:01:31]} 22. Qxf6+ {[%emt 0:00:05]} Kd7 {[%emt 0:06:42]} 23. Kxd2 {[%emt 0:00:06]} Qxc2+ {[%emt 0:00:09]} 24. Ke1 {[%emt 0:00:06]} Qb1+ {[%emt 0:02:19]} 25. Kf2 {[%emt 0:02:35]} Qxb2+ {[%emt 0:00:07]} 26. Kg3 {[%emt 0:01:14]} Rg8+ {[%emt 0:03:23]} 27. Kh3 {[%emt 0:00:17]} Bc2 {[%emt 0:00:48]} 28. Ng3 {[%emt 0:11:43]} Rg6 {[%emt 0:10:06]} 29. Qf4 {[%emt 0:00:16]} Nc6 {[%emt 0:01:02]} 30. Bc5 {[%emt 0:04:20]} Qe5 {[%emt 0:01:06]} 31. Qxe5 {[%emt 0:02:02]} Nxe5 {[%emt 0:00:02]} 32. Be2 {[%emt 0:00:13]} f5 {[%emt 0:00:21]} 33. Bd4 {[%emt 0:01:36]} Nc6 {[%emt 0:00:05]} 34. Bc3 {[%emt 0:00:18]} f4 {[%emt 0:00:09]} 35. Nf1 {[%emt 0:01:46]} e5 {[%emt 0:00:20]} 36. Nd2 {[%emt 0:00:37]} Kc7 {[%emt 0:01:08]} 37. Rc1 {[%emt 0:00:04]} Bf5+ {[%emt 0:00:02]} 38. Kh2 {[%emt 0:00:10]} Kb6 {[%emt 0:00:02]} 39. Bb4 {[%emt 0:00:56]} h5 {[%emt 0:02:57]} 40. Bc5+ {[%emt 0:01:11]} Kb7 {[%emt 0:00:06]} 41. Ne4 {[%emt 0:00:10]} Kc7 {[%emt 0:00:58]} 42. Rd1 {[%emt 0:00:10]} Rg8 {[%emt 0:00:30]} 43. Nf6 {[%emt 0:00:15]} Rh8 {[%emt 0:00:10]} 44. Rd6 {[%emt 0:00:59]} Kb7 {[%emt 0:00:43]} 45. Bd3 {[%emt 0:00:43]} Bxd3 {[%emt 0:00:03]} 46. Rd7+ {[%emt 0:00:27]} Kc8 {[%emt 0:00:01]} 47. Rxd3 {[%emt 0:00:07]} Rh6 {[%emt 0:00:05]} 48. Rd6 {[%emt 0:00:37]} Kb7 {[%emt 0:00:01]} 49. Rd7+ {[%emt 0:00:24]} Kc8 {[%emt 0:00:01]} 50. Rf7 {[%emt 0:00:33]} Nd8 {[%emt 0:00:08]} 51. Rf8 {[%emt 0:00:07]} Kc7 {[%emt 0:00:06]} 52. Ne4 {[%emt 0:00:29]} Ne6 {[%emt 0:00:20]} 53. Bd6+ {[%emt 0:01:34]} Kc6 {[%emt 0:00:02]} 54. Rf5 {[%emt 0:00:10]} Nd4 {[%emt 0:00:36]} 55. Rxe5 {[%emt 0:00:13]} Rxd6 {[%emt 0:00:05]} 56. Nxd6 {[%emt 0:00:06]} Kxd6 {[%emt 0:00:03]} 57. Rxh5 {[%emt 0:00:09]} a5 {[%emt 0:00:12]} 58. Rh6+ {[%emt 0:00:05]} Ke7 {[%emt 0:00:30]} 59. Ra6 {[%emt 0:00:16]} a4 {[%emt 0:00:03]} 60. Rb6 {[%emt 0:00:14]} Kd7 {[%emt 0:00:16]} 61. h5 {[%emt 0:00:13]} Ke7 {[%emt 0:00:34]} 62. Kh3 {[%emt 0:00:14]} Kf7 {[%emt 0:00:18]} 63. Kg4 {[%emt 0:00:25]} Nc2 {[%emt 0:00:18]} 64. Rxb5 {[%emt 0:00:00]} Nxa3 {[%emt 0:00:03]} 65. Rb4 {[%emt 0:00:22]} 1-0

[Event "1st Bangalore GM-Open-A 2024"]
[Site "Bangalore"]
[Date "2024.01.18"]
[Round "1.29"]
[White "Kaustuv, Kundu"]
[Black "Shadhursshaan R"]
[Result "0-1"]
[ECO "E60"]
[WhiteElo "2423"]
[BlackElo "2058"]
[Annotator "RC"]
[PlyCount "104"]
[EventDate "2024.01.20"]
[EventType "swiss"]
[EventCountry "IND"]
[SourceTitle "playchess.com"]
[Source "ChessBase"]
[SourceQuality "1"]
[TimeControl "5400+30"]

1. Nf3 {[%emt 0:00:34]} Nf6 {[%emt 0:00:14]} 2. c4 {[%emt 0:00:13]} c5 {[%emt 0:00:07]} 3. b3 {[%emt 0:02:27]} g6 {[%emt 0:02:39]} 4. Bb2 {[%emt 0:00:14]} Bg7 {[%emt 0:00:19]} 5. g3 {[%emt 0:00:06]} O-O {[%emt 0:01:19]} 6. Bg2 {[%emt 0:00:04]} Nc6 {[%emt 0:01:49]} 7. O-O {[%emt 0:00:38]} d6 {[%emt 0:02:47]} 8. d4 {[%emt 0:00:09]} cxd4 {[%emt 0:00:26]} 9. Nxd4 {[%emt 0:00:05]} Bd7 {[%emt 0:05:04]} 10. Nc3 {[%emt 0:01:22]} Nxd4 {[%emt 0:08:58]} 11. Qxd4 {[%emt 0:00:07]} Bc6 {[%emt 0:00:16]} 12. Nd5 {[%emt 0:00:28]} Bxd5 {[%emt 0:05:59]} 13. Bxd5 {[%emt 0:00:09]} Qc7 {[%emt 0:00:18]} 14. Bf3 {[%emt 0:01:36]} Ne8 {[%emt 0:05:34]} 15. Qd2 {[%emt 0:00:09]} Bxb2 {[%emt 0:00:09]} 16. Qxb2 {[%emt 0:00:04]} Rb8 {[%emt 0:00:19]} 17. Rac1 {[%emt 0:00:22]} Nf6 {[%emt 0:02:35]} 18. Rfd1 {[%emt 0:00:47]} Rfc8 {[%emt 0:09:01]} 19. g4 {[%emt 0:07:08]} Qa5 {[%emt 0:06:16]} 20. h4 {[%emt 0:03:30]} b5 {[%emt 0:02:07]} 21. g5 {[%emt 0:06:20]} Ne8 {[%emt 0:00:21]} 22. c5 {[%emt 0:13:06]} dxc5 {[%emt 0:03:25]} 23. Rd7 {[%emt 0:00:10]} e6 {[%emt 0:07:23]} 24. h5 {[%emt 0:03:26]} c4 {[%emt 0:06:00]} 25. b4 {[%emt 0:00:57]} Qb6 {[%emt 0:00:56]} 26. Qe5 {[%emt 0:14:49]} Rd8 {[%emt 0:01:16]} 27. Rcd1 {[%emt 0:16:32]} Rxd7 {[%emt 0:00:14]} 28. Rxd7 {[%emt 0:00:06]} Rd8 {[%emt 0:00:08]} 29. Rxd8 {[%emt 0:06:45]} Qxd8 {[%emt 0:01:45]} 30. h6 {[%emt 0:00:57]} a6 {[%emt 0:02:21]} 31. Qc5 {[%emt 0:06:07]} Qc7 {[%emt 0:05:05]} 32. Qe3 {[%emt 0:04:19]} c3 {[%emt 0:02:26]} 33. Be4 {[%emt 0:01:25]} Qc4 {[%emt 0:00:52]} 34. Bc2 {[%emt 0:04:30]} Qxb4 {[%emt 0:01:59]} 35. f4 {[%emt 0:01:24]} Kf8 {[%emt 0:00:00]} 36. Qe5 {[%emt 0:01:18]} Ke7 {[%emt 0:01:57]} 37. Kf2 {[%emt 0:02:42]} Qd6 {[%emt 0:01:10]} 38. Qe4 {[%emt 0:01:40]} Nc7 {[%emt 0:00:53]} 39. Kf3 {[%emt 0:00:10]} Qd5 {[%emt 0:00:22]} 40. Qxd5 {[%emt 0:00:32]} Nxd5 {[%emt 0:00:08]} 41. a3 {[%emt 0:00:09]} b4 {[%emt 0:00:23]} 42. a4 {[%emt 0:00:09]} Kd6 {[%emt 0:00:33]} 43. e4 {[%emt 0:00:24]} Nb6 {[%emt 0:00:13]} 44. Ke3 {[%emt 0:00:33]} Nc4+ {[%emt 0:00:27]} 45. Kd3 {[%emt 0:00:13]} Kc5 {[%emt 0:00:05]} 46. Bb3 {[%emt 0:00:55]} Na5 {[%emt 0:00:27]} 47. Bd1 {[%emt 0:00:07]} Nc4 {[%emt 0:01:20]} 48. Bg4 {[%emt 0:00:53]} a5 {[%emt 0:00:00]} 49. Bh3 {[%emt 0:00:20]} Nb2+ {[%emt 0:00:34]} 50. Kc2 {[%emt 0:00:04]} Kc4 {[%emt 0:01:32]} 51. Bf1+ {[%emt 0:00:21]} Kd4 {[%emt 0:00:06]} 52. f5 {[%emt 0:00:11]} Kxe4 {[%emt 0:00:23]} 0-1

[Event "1st Bangalore GM-Open-A 2024"]
[Site "Bangalore"]
[Date "2024.01.18"]
[Round "1.30"]
[White "Vaibhav Jayant Raut"]
[Black "Deepan Chakkravarthy J."]
[Result "0-1"]
[ECO "A20"]
[WhiteElo "2052"]
[BlackElo "2422"]
[Annotator "RC"]
[PlyCount "96"]
[EventDate "2024.01.20"]
[EventType "swiss"]
[EventCountry "IND"]
[SourceTitle "playchess.com"]
[Source "ChessBase"]
[SourceQuality "1"]
[TimeControl "5400+30"]

1. c4 {[%emt 0:00:07]} e5 {[%emt 0:00:07]} 2. g3 {[%emt 0:01:05]} c6 {[%emt 0:00:34]} 3. Nf3 {[%emt 0:00:32]} e4 {[%emt 0:00:05]} 4. Nd4 {[%emt 0:00:03]} d5 {[%emt 0:00:03]} 5. cxd5 {[%emt 0:07:35]} cxd5 {[%emt 0:01:39]} 6. Bg2 {[%emt 0:04:19]} Nc6 {[%emt 0:05:39]} 7. Nxc6 {[%emt 0:05:57]} bxc6 {[%emt 0:00:04]} 8. d3 {[%emt 0:01:49]} f5 {[%emt 0:01:25]} 9. Qc2 {[%emt 0:06:24]} Bd7 {[%emt 0:01:17]} 10. Nc3 {[%emt 0:17:18]} Nf6 {[%emt 0:00:14]} 11. O-O {[%emt 0:01:50]} Be7 {[%emt 0:04:13]} 12. Na4 {[%emt 0:04:04]} O-O {[%emt 0:00:23]} 13. Nc5 {[%emt 0:02:31]} Ng4 {[%emt 0:01:06]} 14. d4 {[%emt 0:05:34]} Bc8 {[%emt 0:07:33]} 15. f3 {[%emt 0:03:43]} Nf6 {[%emt 0:02:26]} 16. Bf4 {[%emt 0:02:59]} Re8 {[%emt 0:04:51]} 17. Rac1 {[%emt 0:02:33]} Bd6 {[%emt 0:01:49]} 18. Bxd6 {[%emt 0:04:39]} Qxd6 {[%emt 0:00:02]} 19. f4 {[%emt 0:00:24]} Rb8 {[%emt 0:00:52]} 20. Qc3 {[%emt 0:00:53]} h6 {[%emt 0:01:06]} 21. e3 {[%emt 0:01:59]} Re7 {[%emt 0:02:05]} 22. Bh3 {[%emt 0:01:16]} g6 {[%emt 0:01:55]} 23. Rf2 {[%emt 0:01:44]} h5 {[%emt 0:01:24]} 24. Nb3 {[%emt 0:01:28]} Rb6 {[%emt 0:01:53]} 25. Bf1 {[%emt 0:04:23]} h4 {[%emt 0:00:01]} 26. gxh4 {[%emt 0:00:33]} Rh7 {[%emt 0:00:56]} 27. Rg2 {[%emt 0:00:12]} Kg7 {[%emt 0:01:31]} 28. Qe1 {[%emt 0:00:25]} Bd7 {[%emt 0:01:06]} 29. Be2 {[%emt 0:04:57]} Be8 {[%emt 0:00:21]} 30. Kh1 {[%emt 0:01:07]} Kh8 {[%emt 0:02:57]} 31. Qg3 {[%emt 0:00:48]} Rbb7 {[%emt 0:01:02]} 32. Qg5 {[%emt 0:00:52]} Nh5 {[%emt 0:01:01]} 33. Rcg1 {[%emt 0:02:43]} Ng7 {[%emt 0:01:30]} 34. Rg3 {[%emt 0:01:37]} Qf8 {[%emt 0:05:04]} 35. Rh3 {[%emt 0:01:09]} Ne6 {[%emt 0:00:21]} 36. Qg3 {[%emt 0:00:19]} Rbg7 {[%emt 0:00:41]} 37. Qe1 {[%emt 0:00:54]} Qf6 {[%emt 0:00:06]} 38. Ba6 {[%emt 0:03:10]} c5 {[%emt 0:13:03]} 39. Bc8 {[%emt 0:00:42]} Nxf4 {[%emt 0:00:07]} 40. exf4 {[%emt 0:00:21]} cxd4 {[%emt 0:00:04]} 41. Qb4 {[%emt 0:01:02]} d3 {[%emt 0:06:16]} 42. Nd4 {[%emt 0:00:44]} a5 {[%emt 0:02:14]} 43. Qb8 {[%emt 0:03:05]} Qxd4 {[%emt 0:00:04]} 44. Bd7 {[%emt 0:01:55]} Rg8 {[%emt 0:00:05]} 45. Bxe8 {[%emt 0:00:11]} d2 {[%emt 0:00:04]} 46. Qb3 {[%emt 0:01:00]} Rxe8 {[%emt 0:00:14]} 47. h5 {[%emt 0:00:17]} e3 {[%emt 0:00:23]} 48. Rhg3 {[%emt 0:00:44]} e2 {[%emt 0:02:57]} 0-1

[Event "1st Bangalore GM-Open-A 2024"]
[Site "Bangalore"]
[Date "2024.01.18"]
[Round "1.31"]
[White "Adireddy Arjun"]
[Black "Hiren K G"]
[Result "1-0"]
[ECO "B41"]
[WhiteElo "2415"]
[BlackElo "2052"]
[Annotator "RC"]
[PlyCount "103"]
[EventDate "2024.01.20"]
[EventType "swiss"]
[EventCountry "IND"]
[SourceTitle "playchess.com"]
[Source "ChessBase"]
[SourceQuality "1"]
[TimeControl "5400+30"]

1. e4 {[%emt 0:00:16]} c5 {[%emt 0:00:21]} 2. Nf3 {[%emt 0:00:08]} a6 {[%emt 0:00:14]} 3. c4 {[%emt 0:00:10]} e6 {[%emt 0:01:32]} 4. d4 {[%emt 0:00:08]} cxd4 {[%emt 0:00:08]} 5. Nxd4 {[%emt 0:00:07]} Nf6 {[%emt 0:01:50]} 6. Bd3 {[%emt 0:03:51]} Nc6 {[%emt 0:01:37]} 7. Nxc6 {[%emt 0:00:38]} dxc6 {[%emt 0:05:24]} 8. O-O {[%emt 0:04:09]} e5 {[%emt 0:03:41]} 9. Qe2 {[%emt 0:14:54]} Bc5 {[%emt 0:08:18]} 10. Be3 {[%emt 0:02:36]} Qb6 {[%emt 0:06:03]} 11. Bxc5 {[%emt 0:02:24]} Qxc5 {[%emt 0:00:33]} 12. h3 {[%emt 0:11:34]} Be6 {[%emt 0:03:06]} 13. Nd2 {[%emt 0:01:34]} Rd8 {[%emt 0:05:17]} 14. Nb3 {[%emt 0:03:37]} Qb4 {[%emt 0:05:49]} 15. Rac1 {[%emt 0:13:27]} O-O {[%emt 0:07:57]} 16. Rc3 {[%emt 0:06:35]} Qe7 {[%emt 0:11:36]} 17. Nd2 {[%emt 0:06:21]} c5 {[%emt 0:08:48]} 18. Rd1 {[%emt 0:03:53]} Nd7 {[%emt 0:03:58]} 19. Bc2 {[%emt 0:11:37]} Nb8 {[%emt 0:00:58]} 20. Ba4 {[%emt 0:01:56]} Rd4 {[%emt 0:01:47]} 21. Nf3 {[%emt 0:05:12]} b5 {[%emt 0:06:59]} 22. Bb3 {[%emt 0:00:17]} Rxd1+ {[%emt 0:03:24]} 23. Qxd1 {[%emt 0:00:09]} b4 {[%emt 0:02:07]} 24. Rd3 {[%emt 0:00:44]} f6 {[%emt 0:02:23]} 25. Rd6 {[%emt 0:02:21]} Kf7 {[%emt 0:00:50]} 26. Ba4 {[%emt 0:01:15]} Qc7 {[%emt 0:00:50]} 27. Nh4 {[%emt 0:02:44]} g6 {[%emt 0:00:41]} 28. b3 {[%emt 0:01:17]} Ke7 {[%emt 0:00:42]} 29. Rd2 {[%emt 0:00:08]} Bc8 {[%emt 0:06:34]} 30. Nf3 {[%emt 0:00:53]} Bb7 {[%emt 0:00:10]} 31. Re2 {[%emt 0:00:28]} Rd8 {[%emt 0:00:11]} 32. Qc1 {[%emt 0:00:03]} Kf8 {[%emt 0:01:25]} 33. h4 {[%emt 0:00:54]} Kg7 {[%emt 0:00:50]} 34. h5 {[%emt 0:00:11]} Qe7 {[%emt 0:00:29]} 35. Qe3 {[%emt 0:00:56]} Rd1+ {[%emt 0:00:42]} 36. Re1 {[%emt 0:00:28]} Rxe1+ {[%emt 0:00:08]} 37. Nxe1 {[%emt 0:00:02]} Bc6 {[%emt 0:00:10]} 38. Bxc6 {[%emt 0:00:58]} Nxc6 {[%emt 0:00:07]} 39. Nd3 {[%emt 0:00:30]} Nd4 {[%emt 0:00:06]} 40. hxg6 {[%emt 0:00:16]} hxg6 {[%emt 0:00:05]} 41. f4 {[%emt 0:00:40]} exf4 {[%emt 0:00:56]} 42. Nxf4 {[%emt 0:00:02]} Nf5 {[%emt 0:01:00]} 43. Nxg6 {[%emt 0:01:04]} Nxe3 {[%emt 0:00:58]} 44. Nxe7 {[%emt 0:00:01]} Nd1 {[%emt 0:00:11]} 45. Nd5 {[%emt 0:00:51]} Nc3 {[%emt 0:00:10]} 46. Nc7 {[%emt 0:00:23]} a5 {[%emt 0:00:35]} 47. Ne6+ {[%emt 0:00:17]} Kf7 {[%emt 0:00:17]} 48. Nxc5 {[%emt 0:00:03]} Nxa2 {[%emt 0:00:08]} 49. Kf2 {[%emt 0:01:22]} Nc1 {[%emt 0:00:41]} 50. Ke3 {[%emt 0:00:27]} Nxb3 {[%emt 0:01:22]} 51. Nxb3 {[%emt 0:00:05]} a4 {[%emt 0:00:04]} 52. Nc5 {[%emt 0:00:47]} 1-0

[Event "1st Bangalore GM-Open-A 2024"]
[Site "Bangalore"]
[Date "2024.01.18"]
[Round "1.32"]
[White "Simhadri Sai Hrushikesh"]
[Black "Vishnu Prasanna. V"]
[Result "1/2-1/2"]
[ECO "B32"]
[WhiteElo "2050"]
[BlackElo "2413"]
[Annotator "RC"]
[PlyCount "76"]
[EventDate "2024.01.20"]
[EventType "swiss"]
[EventCountry "IND"]
[SourceTitle "playchess.com"]
[Source "ChessBase"]
[SourceQuality "1"]
[TimeControl "5400+30"]

1. e4 {[%emt 0:00:16]} c5 {[%emt 0:00:11]} 2. Nf3 {[%emt 0:00:08]} Nc6 {[%emt 0:00:09]} 3. d4 {[%emt 0:00:17]} cxd4 {[%emt 0:00:06]} 4. Nxd4 {[%emt 0:00:04]} e5 {[%emt 0:00:10]} 5. Nb5 {[%emt 0:00:23]} d6 {[%emt 0:00:06]} 6. N1c3 {[%emt 0:00:13]} a6 {[%emt 0:00:15]} 7. Na3 {[%emt 0:00:25]} Be6 {[%emt 0:00:10]} 8. Nc4 {[%emt 0:03:54]} Rb8 {[%emt 0:01:00]} 9. a4 {[%emt 0:02:33]} Nf6 {[%emt 0:10:07]} 10. Bg5 {[%emt 0:10:31]} Nd4 {[%emt 0:10:04]} 11. Nd5 {[%emt 0:20:45]} Bxd5 {[%emt 0:05:22]} 12. exd5 {[%emt 0:00:07]} g6 {[%emt 0:16:15]} 13. c3 {[%emt 0:16:58]} Nf5 {[%emt 0:02:00]} 14. Bd3 {[%emt 0:01:23]} Bh6 {[%emt 0:04:37]} 15. Bxf6 {[%emt 0:03:17]} Qxf6 {[%emt 0:00:36]} 16. Qf3 {[%emt 0:03:44]} Ke7 {[%emt 0:03:41]} 17. g4 {[%emt 0:09:57]} Nh4 {[%emt 0:01:24]} 18. Qxf6+ {[%emt 0:00:18]} Kxf6 {[%emt 0:00:04]} 19. Nxd6 {[%emt 0:01:02]} Ke7 {[%emt 0:00:08]} 20. Ne4 {[%emt 0:02:47]} f5 {[%emt 0:01:14]} 21. gxf5 {[%emt 0:02:53]} gxf5 {[%emt 0:01:01]} 22. Ng3 {[%emt 0:07:01]} e4 {[%emt 0:01:14]} 23. Be2 {[%emt 0:02:00]} Kd6 {[%emt 0:03:04]} 24. Rd1 {[%emt 0:02:57]} Rhe8 {[%emt 0:02:05]} 25. Nh5 {[%emt 0:06:05]} Re5 {[%emt 0:10:17]} 26. Rd4 {[%emt 0:01:19]} Rf8 {[%emt 0:02:23]} 27. Ng3 {[%emt 0:01:19]} Ng2+ {[%emt 0:04:36]} 28. Kd1 {[%emt 0:00:42]} Rxd5 {[%emt 0:01:12]} 29. Rxd5+ {[%emt 0:00:20]} Kxd5 {[%emt 0:00:04]} 30. f3 {[%emt 0:00:31]} Ke5 {[%emt 0:01:21]} 31. fxe4 {[%emt 0:00:52]} Rd8+ {[%emt 0:02:10]} 32. Kc2 {[%emt 0:00:17]} Rd2+ {[%emt 0:00:48]} 33. Kb3 {[%emt 0:00:40]} f4 {[%emt 0:00:25]} 34. Bf3 {[%emt 0:00:30]} Nh4 {[%emt 0:01:19]} 35. Bg4 {[%emt 0:00:17]} f3 {[%emt 0:06:52]} 36. Rf1 {[%emt 0:00:37]} Rxh2 {[%emt 0:00:51]} 37. Bxf3 {[%emt 0:00:26]} Rh3 {[%emt 0:00:12]} 38. Rh1 {[%emt 0:00:20]} Rxh1 {[%emt 0:01:47]} 1/2-1/2